[Event "Early-Titled-Tuesday-Blitz-September-26-2023"]
[Site "Chess.com"]
[Date "2023.09.26"]
[Round "8"]
[White "Vanina1989"]
[Black "jk13"]
[Result "1/2-1/2"]
[WhiteElo "2712"]
[BlackElo "2624"]
[TimeControl "180+1"]
[EndTime "9:30:01 PDT"]
[Termination "Game drawn by repetition"]

1. d4 {[%clk 0:02:58]} 1... Nf6 {[%clk 0:02:59.5]} 2. c4 {[%clk 0:02:57.8]} 2...
e6 {[%clk 0:02:59.9]} 3. Nf3 {[%clk 0:02:57.8]} 3... Bb4+ {[%clk 0:03:00.5]} 4.
Bd2 {[%clk 0:02:57.6]} 4... Bxd2+ {[%clk 0:03:00.7]} 5. Qxd2 {[%clk 0:02:57.8]}
5... O-O {[%clk 0:03:01.6]} 6. Nc3 {[%clk 0:02:57.8]} 6... d5 {[%clk 0:03:02.3]}
7. e3 {[%clk 0:02:56]} 7... Qe7 {[%clk 0:03:01.6]} 8. Rc1 {[%clk 0:02:53.5]}
8... Rd8 {[%clk 0:03:00.1]} 9. cxd5 {[%clk 0:02:53.3]} 9... exd5 {[%clk
0:03:00.4]} 10. Be2 {[%clk 0:02:53.2]} 10... Nc6 {[%clk 0:02:59.8]} 11. O-O
{[%clk 0:02:53.4]} 11... Bf5 {[%clk 0:02:59.8]} 12. h3 {[%clk 0:02:50.3]} 12...
Ne4 {[%clk 0:02:59.1]} 13. Nxe4 {[%clk 0:02:49]} 13... Bxe4 {[%clk 0:03:00]} 14.
Qd1 {[%clk 0:02:43.5]} 14... Rd6 {[%clk 0:02:59.3]} 15. Nd2 {[%clk 0:02:42.6]}
15... Bf5 {[%clk 0:02:51.8]} 16. Bg4 {[%clk 0:02:39.1]} 16... Bg6 {[%clk
0:02:40.8]} 17. Re1 {[%clk 0:02:36.3]} 17... Re8 {[%clk 0:02:35.6]} 18. Qb3
{[%clk 0:02:32.8]} 18... Nd8 {[%clk 0:02:30.1]} 19. Be2 {[%clk 0:02:26.4]} 19...
c6 {[%clk 0:02:27.5]} 20. Nf3 {[%clk 0:02:26.7]} 20... Be4 {[%clk 0:02:20]} 21.
Ne5 {[%clk 0:02:20.5]} 21... Qg5 {[%clk 0:02:18.3]} 22. f3 {[%clk 0:02:16.6]}
22... Bg6 {[%clk 0:02:11.5]} 23. Bd3 {[%clk 0:01:57.3]} 23... Bxd3 {[%clk
0:01:52]} 24. Qxd3 {[%clk 0:01:56.8]} 24... Rde6 {[%clk 0:01:35.6]} 25. Ng4
{[%clk 0:01:36.4]} 25... h5 {[%clk 0:01:15.8]} 26. f4 {[%clk 0:01:36.3]} 26...
Qh4 {[%clk 0:01:14.6]} 27. f5 {[%clk 0:01:30.5]} 27... Re4 {[%clk 0:01:05.4]}
28. Nf2 {[%clk 0:01:29.7]} 28... R4e7 {[%clk 0:01:05.3]} 29. Re2 {[%clk
0:01:19.8]} 29... f6 {[%clk 0:01:00.1]} 30. Rce1 {[%clk 0:01:18.4]} 30... Nf7
{[%clk 0:00:57.9]} 31. e4 {[%clk 0:01:18.8]} 31... dxe4 {[%clk 0:00:52.7]} 32.
Nxe4 {[%clk 0:01:18.6]} 32... Kh8 {[%clk 0:00:43.4]} 33. Qf3 {[%clk 0:01:11.8]}
33... Kg8 {[%clk 0:00:21.2]} 34. Kh2 {[%clk 0:01:10.7]} 34... Ng5 {[%clk
0:00:14.8]} 35. Nxg5 {[%clk 0:01:07.3]} 35... Rxe2 {[%clk 0:00:15.1]} 36. Rxe2
{[%clk 0:01:07.5]} 36... Rxe2 {[%clk 0:00:15.3]} 37. Qxe2 {[%clk 0:00:57.1]}
37... Qxg5 {[%clk 0:00:16]} 38. Qe4 {[%clk 0:00:34.3]} 38... Kh7 {[%clk
0:00:16.6]} 39. h4 {[%clk 0:00:29.9]} 39... Qd2 {[%clk 0:00:16.2]} 40. Qf3
{[%clk 0:00:26.2]} 40... Kh6 {[%clk 0:00:16.1]} 41. Qg3 {[%clk 0:00:21.7]} 41...
Kh7 {[%clk 0:00:14.1]} 42. Qg6+ {[%clk 0:00:21.9]} 42... Kg8 {[%clk 0:00:14.3]}
43. Qe8+ {[%clk 0:00:22]} 43... Kh7 {[%clk 0:00:14.8]} 44. Qxh5+ {[%clk
0:00:22.1]} 44... Kg8 {[%clk 0:00:15.5]} 45. Qe8+ {[%clk 0:00:20.8]} 45... Kh7
{[%clk 0:00:15.9]} 46. Qg6+ {[%clk 0:00:17.8]} 46... Kg8 {[%clk 0:00:15.9]} 47.
h5 {[%clk 0:00:16.3]} 47... Qxd4 {[%clk 0:00:15.8]} 48. Kh3 {[%clk 0:00:14]}
48... Qe3+ {[%clk 0:00:14.1]} 49. g3 {[%clk 0:00:14.1]} 49... Kh8 {[%clk
0:00:11.5]} 50. b3 {[%clk 0:00:11]} 50... c5 {[%clk 0:00:10.2]} 51. Qf7 {[%clk
0:00:10]} 51... b6 {[%clk 0:00:09.4]} 52. Qxa7 {[%clk 0:00:08.3]} 52... b5
{[%clk 0:00:08]} 53. Qa8+ {[%clk 0:00:08.4]} 53... Kh7 {[%clk 0:00:08.5]} 54.
Qd5 {[%clk 0:00:07.2]} 54... Qg5 {[%clk 0:00:07.8]} 55. Qxc5 {[%clk 0:00:05.5]}
55... Qxh5+ {[%clk 0:00:08.1]} 56. Kg2 {[%clk 0:00:05.8]} 56... Qe2+ {[%clk
0:00:08.8]} 57. Qf2 {[%clk 0:00:06.1]} 57... Qe4+ {[%clk 0:00:08.8]} 58. Kh2
{[%clk 0:00:06.2]} 58... Qg4 {[%clk 0:00:08.7]} 59. Kg2 {[%clk 0:00:04.6]} 59...
Qe4+ {[%clk 0:00:08.9]} 60. Qf3 {[%clk 0:00:04.8]} 60... Qc2+ {[%clk 0:00:09.1]}
61. Qf2 {[%clk 0:00:04.7]} 61... Qe4+ {[%clk 0:00:09.2]} 1/2-1/2

[Event "Early-Titled-Tuesday-Blitz-September-26-2023"]
[Site "Chess.com"]
[Date "2023.09.26"]
[Round "8"]
[White "Krakozia"]
[Black "vugarrasulov"]
[Result "0-1"]
[WhiteElo "3032"]
[BlackElo "2971"]
[TimeControl "180+1"]
[EndTime "9:30:03 PDT"]
[Termination "vugarrasulov won on time"]

1. Nf3 {[%clk 0:02:56.3]} 1... Nf6 {[%clk 0:03:00.4]} 2. g3 {[%clk 0:02:55.2]}
2... b6 {[%clk 0:02:57.5]} 3. Bg2 {[%clk 0:02:55.1]} 3... Bb7 {[%clk 0:02:58.2]}
4. O-O {[%clk 0:02:55.3]} 4... g6 {[%clk 0:02:58.5]} 5. c4 {[%clk 0:02:55.1]}
5... c5 {[%clk 0:02:57.8]} 6. d4 {[%clk 0:02:46.9]} 6... cxd4 {[%clk 0:02:57.6]}
7. Qxd4 {[%clk 0:02:47.8]} 7... Bg7 {[%clk 0:02:57.5]} 8. Nc3 {[%clk 0:02:48]}
8... d6 {[%clk 0:02:53.9]} 9. Rd1 {[%clk 0:02:48]} 9... Nbd7 {[%clk 0:02:53.3]}
10. Be3 {[%clk 0:02:44]} 10... Rc8 {[%clk 0:02:45.1]} 11. Rac1 {[%clk
0:02:41.9]} 11... Nc5 {[%clk 0:02:14.9]} 12. b4 {[%clk 0:02:17.5]} 12... Ne6
{[%clk 0:02:13.8]} 13. Qh4 {[%clk 0:02:14.5]} 13... h6 {[%clk 0:02:08.1]} 14.
Nd5 {[%clk 0:01:06.1]} 14... g5 {[%clk 0:01:50.2]} 15. Nxf6+ {[%clk 0:01:05.4]}
15... Bxf6 {[%clk 0:01:50]} 16. Qg4 {[%clk 0:01:02.5]} 16... Qd7 {[%clk
0:01:26]} 17. Qf5 {[%clk 0:00:38.1]} 17... Rc7 {[%clk 0:01:18.2]} 18. a3 {[%clk
0:00:33.8]} 18... Qc8 {[%clk 0:01:14.3]} 19. Qd3 {[%clk 0:00:32.5]} 19... Qa8
{[%clk 0:01:05.5]} 20. Qf5 {[%clk 0:00:28.8]} 20... O-O {[%clk 0:00:57.9]} 21.
h4 {[%clk 0:00:19.9]} 21... Qc8 {[%clk 0:00:53.3]} 22. Bh3 {[%clk 0:00:15.2]}
22... Ng7 {[%clk 0:00:39]} 23. hxg5 {[%clk 0:00:13.3]} 23... Nxf5 {[%clk
0:00:37.9]} 24. gxf6 {[%clk 0:00:13.6]} 24... Bxf3 {[%clk 0:00:35.1]} 25. exf3
{[%clk 0:00:12.3]} 25... e6 {[%clk 0:00:32.5]} 26. Bxf5 {[%clk 0:00:12.1]} 26...
exf5 {[%clk 0:00:33.4]} 27. Rd4 {[%clk 0:00:11.6]} 27... Qe6 {[%clk 0:00:29.5]}
28. Bxh6 {[%clk 0:00:10.5]} 28... Qxf6 {[%clk 0:00:28.6]} 29. Rh4 {[%clk
0:00:10.3]} 29... Re8 {[%clk 0:00:28.4]} 30. Kg2 {[%clk 0:00:10.3]} 30... Rce7
{[%clk 0:00:27.5]} 31. Bd2 {[%clk 0:00:07.7]} 31... Re2 {[%clk 0:00:19.5]} 32.
Bc3 {[%clk 0:00:07]} 32... Qxh4 {[%clk 0:00:20.1]} 33. gxh4 {[%clk 0:00:07.2]}
33... Kh7 {[%clk 0:00:19.8]} 34. f4 {[%clk 0:00:06.1]} 34... R8e4 {[%clk
0:00:18.7]} 35. Kf3 {[%clk 0:00:05.5]} 35... Ra2 {[%clk 0:00:19.4]} 36. Be1
{[%clk 0:00:05]} 36... Rxa3+ {[%clk 0:00:19.3]} 37. Kg2 {[%clk 0:00:05.5]} 37...
Rxf4 {[%clk 0:00:19.3]} 38. Bd2 {[%clk 0:00:05.2]} 38... Rg4+ {[%clk 0:00:19.3]}
39. Kf1 {[%clk 0:00:05.2]} 39... Rxh4 {[%clk 0:00:20]} 40. Ke2 {[%clk
0:00:05.7]} 40... Re4+ {[%clk 0:00:20.6]} 41. Kf1 {[%clk 0:00:05.6]} 41... Rd3
{[%clk 0:00:19.3]} 42. Be1 {[%clk 0:00:04.3]} 42... Kg6 {[%clk 0:00:18]} 43. c5
{[%clk 0:00:04.8]} 43... bxc5 {[%clk 0:00:18.9]} 44. bxc5 {[%clk 0:00:05.7]}
44... dxc5 {[%clk 0:00:19.8]} 45. Ba5 {[%clk 0:00:06]} 45... Rd5 {[%clk
0:00:19.4]} 46. Bc3 {[%clk 0:00:05.8]} 46... c4 {[%clk 0:00:19.6]} 47. Kg2
{[%clk 0:00:06.1]} 47... Rd3 {[%clk 0:00:19.7]} 48. Bb4 {[%clk 0:00:06.3]} 48...
f6 {[%clk 0:00:19.5]} 49. Bc3 {[%clk 0:00:06.5]} 49... f4 {[%clk 0:00:19.4]} 50.
Bb4 {[%clk 0:00:06.2]} 50... f3+ {[%clk 0:00:19.9]} 51. Kg3 {[%clk 0:00:06.7]}
51... Kf5 {[%clk 0:00:20.6]} 52. Ra1 {[%clk 0:00:06.2]} 52... Rg4+ {[%clk
0:00:20.3]} 53. Kh3 {[%clk 0:00:06.7]} 53... Rg2 {[%clk 0:00:19.8]} 54. Bc5
{[%clk 0:00:06.1]} 54... Rd7 {[%clk 0:00:18.6]} 0-1

[Event "Early-Titled-Tuesday-Blitz-September-26-2023"]
[Site "Chess.com"]
[Date "2023.09.26"]
[Round "8"]
[White "Maxterlopez"]
[Black "deribas12345"]
[Result "1-0"]
[WhiteElo "2744"]
[BlackElo "2568"]
[TimeControl "180+1"]
[EndTime "9:30:06 PDT"]
[Termination "Maxterlopez won on time"]

1. Nf3 {[%clk 0:02:58.7]} 1... c5 {[%clk 0:02:59.5]} 2. e4 {[%clk 0:02:57.2]}
2... d6 {[%clk 0:02:58.8]} 3. d4 {[%clk 0:02:57.4]} 3... cxd4 {[%clk 0:02:59.7]}
4. Nxd4 {[%clk 0:02:58.3]} 4... Nf6 {[%clk 0:02:59.9]} 5. Nc3 {[%clk 0:02:59]}
5... a6 {[%clk 0:03:00.5]} 6. Be3 {[%clk 0:02:58.4]} 6... e5 {[%clk 0:03:00.3]}
7. Nb3 {[%clk 0:02:59]} 7... Be7 {[%clk 0:03:00.5]} 8. f3 {[%clk 0:02:59.6]}
8... O-O {[%clk 0:02:59.8]} 9. Qd2 {[%clk 0:03:00.2]} 9... Be6 {[%clk 0:03:00]}
10. O-O-O {[%clk 0:03:00.9]} 10... b5 {[%clk 0:03:00.1]} 11. g4 {[%clk
0:03:00.2]} 11... b4 {[%clk 0:03:00.1]} 12. Nd5 {[%clk 0:02:59.7]} 12... Bxd5
{[%clk 0:03:00]} 13. exd5 {[%clk 0:03:00.2]} 13... a5 {[%clk 0:03:00.9]} 14. Kb1
{[%clk 0:03:00.3]} 14... Nbd7 {[%clk 0:02:58.1]} 15. Bb5 {[%clk 0:02:58.6]}
15... a4 {[%clk 0:02:51.3]} 16. Nc1 {[%clk 0:02:58.2]} 16... b3 {[%clk
0:02:51.8]} 17. cxb3 {[%clk 0:02:57.9]} 17... axb3 {[%clk 0:02:52]} 18. Nxb3
{[%clk 0:02:58.8]} 18... Nb6 {[%clk 0:02:51]} 19. Bc6 {[%clk 0:02:58.7]} 19...
Nc4 {[%clk 0:02:49.3]} 20. Qe2 {[%clk 0:02:58.7]} 20... Nxe3 {[%clk 0:02:49.3]}
21. Qxe3 {[%clk 0:02:59.6]} 21... Rb8 {[%clk 0:02:48.8]} 22. Rc1 {[%clk
0:02:57.9]} 22... Nd7 {[%clk 0:02:41.3]} 23. h4 {[%clk 0:02:46.2]} 23... f5
{[%clk 0:02:36]} 24. g5 {[%clk 0:02:43.1]} 24... Nb6 {[%clk 0:02:27.4]} 25. Rhe1
{[%clk 0:02:18.5]} 25... Rf7 {[%clk 0:02:06.5]} 26. Re2 {[%clk 0:02:14.5]} 26...
Bf8 {[%clk 0:01:57.7]} 27. Rec2 {[%clk 0:01:28]} 27... g6 {[%clk 0:01:56.1]} 28.
Nd2 {[%clk 0:01:23.9]} 28... Bg7 {[%clk 0:01:45.7]} 29. b4 {[%clk 0:01:02.7]}
29... e4 {[%clk 0:01:34.8]} 30. f4 {[%clk 0:01:02]} 30... Rf8 {[%clk 0:01:10]}
31. Nb3 {[%clk 0:00:47.5]} 31... Nc8 {[%clk 0:00:48.8]} 32. a3 {[%clk 0:00:46]}
32... Ne7 {[%clk 0:00:37.6]} 33. Ka2 {[%clk 0:00:45.9]} 33... Kh8 {[%clk
0:00:28.5]} 34. Nd4 {[%clk 0:00:40.4]} 34... Qb6 {[%clk 0:00:27.5]} 35. Rc4
{[%clk 0:00:36.7]} 35... Qa7 {[%clk 0:00:14.2]} 36. Kb3 {[%clk 0:00:35.1]} 36...
Nc8 {[%clk 0:00:12]} 37. Nc2 {[%clk 0:00:23.8]} 37... Nb6 {[%clk 0:00:11.9]} 38.
Rc3 {[%clk 0:00:22.1]} 38... Rf7 {[%clk 0:00:12]} 39. a4 {[%clk 0:00:20.5]}
39... Qa6 {[%clk 0:00:09]} 40. a5 {[%clk 0:00:20.5]} 40... Nc8 {[%clk
0:00:07.7]} 41. Ra1 {[%clk 0:00:17]} 41... Ne7 {[%clk 0:00:06.4]} 42. Nd4 {[%clk
0:00:16.3]} 42... Rff8 {[%clk 0:00:04.6]} 43. Ne6 {[%clk 0:00:16.1]} 43... Rfc8
{[%clk 0:00:04.5]} 44. Nxg7 {[%clk 0:00:14.9]} 44... Kxg7 {[%clk 0:00:05.4]} 45.
Qd4+ {[%clk 0:00:14.9]} 45... Kg8 {[%clk 0:00:05.7]} 46. Qc4 {[%clk 0:00:14.2]}
46... Qa7 {[%clk 0:00:05.5]} 47. b5 {[%clk 0:00:14.5]} 47... Nxc6 {[%clk
0:00:04.5]} 48. dxc6+ {[%clk 0:00:14.7]} 48... Kf8 {[%clk 0:00:05]} 49. b6
{[%clk 0:00:14.4]} 49... Rxb6+ {[%clk 0:00:04.6]} 50. axb6 {[%clk 0:00:14.5]}
50... Qxa1 {[%clk 0:00:05.5]} 51. Rc1 {[%clk 0:00:11.3]} 51... Qa5 {[%clk
0:00:04.7]} 52. Qb4 {[%clk 0:00:11.1]} 52... Qd5+ {[%clk 0:00:04.4]} 53. Kb2
{[%clk 0:00:11.7]} 53... e3 {[%clk 0:00:03.9]} 54. b7 {[%clk 0:00:11.5]} 54...
Rb8 {[%clk 0:00:03.7]} 55. c7 {[%clk 0:00:12.2]} 55... Qd4+ {[%clk 0:00:01.9]}
56. Qxd4 {[%clk 0:00:12]} 56... Rxb7+ {[%clk 0:00:02.2]} 57. Ka2 {[%clk
0:00:12.3]} 57... Rxc7 {[%clk 0:00:03.1]} 58. Rxc7 {[%clk 0:00:12.1]} 1-0

[Event "Early-Titled-Tuesday-Blitz-September-26-2023"]
[Site "Chess.com"]
[Date "2023.09.26"]
[Round "8"]
[White "Javylavilla"]
[Black "AttilaTurzo"]
[Result "1-0"]
[WhiteElo "2346"]
[BlackElo "2460"]
[TimeControl "180+1"]
[EndTime "9:30:07 PDT"]
[Termination "Javylavilla won on time"]

1. e4 {[%clk 0:03:00.9]} 1... c5 {[%clk 0:02:59.5]} 2. Nf3 {[%clk 0:03:00.4]}
2... Nc6 {[%clk 0:02:58.7]} 3. Bb5 {[%clk 0:02:59.7]} 3... g6 {[%clk 0:02:58.4]}
4. Bxc6 {[%clk 0:02:59.1]} 4... dxc6 {[%clk 0:02:59.3]} 5. d3 {[%clk 0:02:56.6]}
5... Bg7 {[%clk 0:02:58.1]} 6. Nc3 {[%clk 0:02:54.5]} 6... e5 {[%clk 0:02:56.6]}
7. h3 {[%clk 0:02:54.5]} 7... Qe7 {[%clk 0:02:56.2]} 8. Be3 {[%clk 0:02:54.3]}
8... Nf6 {[%clk 0:02:56.3]} 9. Qd2 {[%clk 0:02:54.4]} 9... h6 {[%clk 0:02:56.8]}
10. O-O-O {[%clk 0:02:49.6]} 10... Nd7 {[%clk 0:02:55.3]} 11. g4 {[%clk
0:02:48.2]} 11... Nf8 {[%clk 0:02:54.4]} 12. Ne2 {[%clk 0:02:46.1]} 12... Ne6
{[%clk 0:02:48.9]} 13. h4 {[%clk 0:02:45.1]} 13... Nd4 {[%clk 0:02:44.3]} 14.
Bxd4 {[%clk 0:02:44.7]} 14... cxd4 {[%clk 0:02:43.8]} 15. g5 {[%clk 0:02:34.9]}
15... hxg5 {[%clk 0:02:34.1]} 16. hxg5 {[%clk 0:02:30.6]} 16... Be6 {[%clk
0:02:34.1]} 17. Rxh8+ {[%clk 0:02:26.9]} 17... Bxh8 {[%clk 0:02:35]} 18. Rh1
{[%clk 0:02:26.7]} 18... O-O-O {[%clk 0:02:34.1]} 19. Ng3 {[%clk 0:02:17.5]}
19... Kb8 {[%clk 0:02:27.3]} 20. Qa5 {[%clk 0:02:13.5]} 20... b6 {[%clk
0:02:26.4]} 21. Qa4 {[%clk 0:02:04.4]} 21... Bg4 {[%clk 0:02:15.2]} 22. Nd2
{[%clk 0:02:01.3]} 22... c5 {[%clk 0:02:09]} 23. Qc4 {[%clk 0:01:41.2]} 23...
Be6 {[%clk 0:02:06.8]} 24. Qb5 {[%clk 0:01:39.4]} 24... Qxg5 {[%clk 0:02:04.6]}
25. a4 {[%clk 0:01:39.2]} 25... Qe7 {[%clk 0:01:50.3]} 26. a5 {[%clk 0:01:38]}
26... Qc7 {[%clk 0:01:46.6]} 27. Nc4 {[%clk 0:01:33.1]} 27... Bxc4 {[%clk
0:01:43.5]} 28. Qxc4 {[%clk 0:01:32.6]} 28... Bf6 {[%clk 0:01:37.6]} 29. Nf1
{[%clk 0:01:29.3]} 29... Bg5+ {[%clk 0:01:32.1]} 30. Kb1 {[%clk 0:01:28.6]}
30... f5 {[%clk 0:01:32]} 31. Qe6 {[%clk 0:01:23.7]} 31... Qd6 {[%clk
0:01:25.4]} 32. exf5 {[%clk 0:01:19.4]} 32... gxf5 {[%clk 0:01:10.8]} 33. Qxf5
{[%clk 0:01:18.8]} 33... Bf4 {[%clk 0:01:10.9]} 34. Ng3 {[%clk 0:01:17.2]} 34...
Bxg3 {[%clk 0:01:06.2]} 35. fxg3 {[%clk 0:01:18.1]} 35... bxa5 {[%clk
0:01:05.4]} 36. Rh7 {[%clk 0:01:17.3]} 36... Rf8 {[%clk 0:00:52]} 37. Qe4 {[%clk
0:01:12.8]} 37... Rf1+ {[%clk 0:00:39.3]} 38. Ka2 {[%clk 0:01:12.3]} 38... Qe6+
{[%clk 0:00:34.8]} 39. b3 {[%clk 0:01:12.1]} 39... Rf7 {[%clk 0:00:31.3]} 40.
Rxf7 {[%clk 0:01:09.7]} 40... Qxf7 {[%clk 0:00:32.2]} 41. Qxe5+ {[%clk
0:01:10.1]} 41... Kb7 {[%clk 0:00:29.5]} 42. Qxc5 {[%clk 0:01:09.3]} 42... Qf2
{[%clk 0:00:26.7]} 43. Kb2 {[%clk 0:01:02.4]} 43... Qxg3 {[%clk 0:00:25.6]} 44.
Qb5+ {[%clk 0:01:00.6]} 44... Kc8 {[%clk 0:00:20.7]} 45. Qxa5 {[%clk 0:00:59.5]}
45... Qd6 {[%clk 0:00:16.1]} 46. Qxa7 {[%clk 0:00:57.4]} 46... Qb4 {[%clk
0:00:16.2]} 47. Qa6+ {[%clk 0:00:51.1]} 47... Kd8 {[%clk 0:00:15.4]} 48. Qf6+
{[%clk 0:00:49.7]} 48... Ke8 {[%clk 0:00:14.8]} 49. Qe6+ {[%clk 0:00:48]} 49...
Kd8 {[%clk 0:00:14.5]} 50. Qd5+ {[%clk 0:00:47]} 50... Ke8 {[%clk 0:00:13.5]}
51. Qc6+ {[%clk 0:00:46.9]} 51... Kd8 {[%clk 0:00:13.6]} 52. Qc4 {[%clk
0:00:46.8]} 52... Qb6 {[%clk 0:00:13.4]} 53. b4 {[%clk 0:00:46.4]} 53... Kd7
{[%clk 0:00:12.2]} 54. b5 {[%clk 0:00:45.7]} 54... Kd6 {[%clk 0:00:11.6]} 55.
Kb3 {[%clk 0:00:45.9]} 55... Qa7 {[%clk 0:00:09.7]} 56. Kb4 {[%clk 0:00:43.1]}
56... Qa1 {[%clk 0:00:08.9]} 57. b6 {[%clk 0:00:39.6]} 57... Qb2+ {[%clk
0:00:07.4]} 58. Qb3 {[%clk 0:00:39.6]} 58... Qa1 {[%clk 0:00:05.5]} 59. Kc4
{[%clk 0:00:22.1]} 59... Kc6 {[%clk 0:00:04.9]} 60. Qb5+ {[%clk 0:00:21.8]}
60... Kb7 {[%clk 0:00:04.9]} 61. Kd5 {[%clk 0:00:19.1]} 61... Qc3 {[%clk
0:00:04]} 62. Qc4 {[%clk 0:00:16.8]} 62... Qb2 {[%clk 0:00:01.2]} 63. Qxd4
{[%clk 0:00:16.6]} 1-0

[Event "Early-Titled-Tuesday-Blitz-September-26-2023"]
[Site "Chess.com"]
[Date "2023.09.26"]
[Round "8"]
[White "rasmussvane"]
[Black "Shield12"]
[Result "0-1"]
[WhiteElo "3001"]
[BlackElo "2989"]
[TimeControl "180+1"]
[EndTime "9:30:17 PDT"]
[Termination "Shield12 won by resignation"]

1. Nf3 {[%clk 0:03:00.9]} 1... Nf6 {[%clk 0:02:59.5]} 2. c4 {[%clk 0:03:00.7]}
2... e6 {[%clk 0:02:59.8]} 3. g3 {[%clk 0:03:00.2]} 3... d5 {[%clk 0:03:00.7]}
4. Bg2 {[%clk 0:03:00.6]} 4... d4 {[%clk 0:03:00.7]} 5. d3 {[%clk 0:02:57.8]}
5... Bb4+ {[%clk 0:02:58.7]} 6. Bd2 {[%clk 0:02:57.5]} 6... a5 {[%clk
0:02:58.4]} 7. O-O {[%clk 0:02:57.3]} 7... Nc6 {[%clk 0:02:58.4]} 8. e3 {[%clk
0:02:53.3]} 8... O-O {[%clk 0:02:49.4]} 9. exd4 {[%clk 0:02:22.3]} 9... Nxd4
{[%clk 0:02:50.3]} 10. Bc3 {[%clk 0:02:16.8]} 10... Bxc3 {[%clk 0:02:43.7]} 11.
bxc3 {[%clk 0:02:15.6]} 11... Nxf3+ {[%clk 0:02:39.1]} 12. Qxf3 {[%clk
0:02:16.5]} 12... Rb8 {[%clk 0:02:31.1]} 13. Nd2 {[%clk 0:02:10.3]} 13... b5
{[%clk 0:02:30.9]} 14. Qe3 {[%clk 0:02:05.3]} 14... b4 {[%clk 0:02:18.2]} 15.
cxb4 {[%clk 0:02:00.3]} 15... Rxb4 {[%clk 0:02:15.8]} 16. Rfb1 {[%clk
0:01:50.9]} 16... e5 {[%clk 0:02:12]} 17. Rxb4 {[%clk 0:01:45.1]} 17... axb4
{[%clk 0:02:12.9]} 18. Rb1 {[%clk 0:01:45.7]} 18... Qd6 {[%clk 0:02:04.6]} 19.
c5 {[%clk 0:01:43.4]} 19... Qa6 {[%clk 0:02:03.6]} 20. Rxb4 {[%clk 0:01:31.5]}
20... Qxa2 {[%clk 0:02:03.2]} 21. h3 {[%clk 0:01:29.3]} 21... Bxh3 {[%clk
0:01:34.7]} 22. Bxh3 {[%clk 0:00:51]} 22... Nd5 {[%clk 0:01:33.8]} 23. Qe4
{[%clk 0:00:50.6]} 23... Qxd2 {[%clk 0:01:33.4]} 24. Rb7 {[%clk 0:00:40.4]}
24... Qc1+ {[%clk 0:01:13.8]} 25. Bf1 {[%clk 0:00:40.3]} 25... Qxc5 {[%clk
0:01:07.4]} 26. Qxe5 {[%clk 0:00:39.6]} 26... Qc6 {[%clk 0:01:00.7]} 27. Rb1
{[%clk 0:00:35]} 27... Re8 {[%clk 0:00:57.1]} 28. Qd4 {[%clk 0:00:33]} 28... Nf6
{[%clk 0:00:43.7]} 29. Bg2 {[%clk 0:00:32.7]} 29... Qc2 {[%clk 0:00:40.5]} 30.
Ra1 {[%clk 0:00:24.9]} 30... h5 {[%clk 0:00:39.5]} 31. Bf3 {[%clk 0:00:24.3]}
31... c5 {[%clk 0:00:39.2]} 32. Qc4 {[%clk 0:00:21.2]} 32... Qxc4 {[%clk
0:00:28.8]} 33. dxc4 {[%clk 0:00:22.1]} 33... g5 {[%clk 0:00:26.2]} 34. Ra5
{[%clk 0:00:21.1]} 34... Re5 {[%clk 0:00:26]} 35. Kh2 {[%clk 0:00:19]} 35... g4
{[%clk 0:00:23.8]} 36. Bd5 {[%clk 0:00:18.9]} 36... Nxd5 {[%clk 0:00:10.7]} 37.
Rxc5 {[%clk 0:00:18.9]} 37... Rf5 {[%clk 0:00:11.1]} 38. Rxd5 {[%clk 0:00:16.5]}
38... Rxd5 {[%clk 0:00:11.2]} 39. cxd5 {[%clk 0:00:16.6]} 39... Kf8 {[%clk
0:00:12.1]} 40. Kg2 {[%clk 0:00:12.7]} 40... Ke7 {[%clk 0:00:12.3]} 41. f3
{[%clk 0:00:05.9]} 41... Kd6 {[%clk 0:00:12.3]} 42. Kf2 {[%clk 0:00:03.5]} 42...
Kxd5 {[%clk 0:00:12.4]} 43. Ke3 {[%clk 0:00:04.2]} 43... Ke5 {[%clk 0:00:12.9]}
44. Kd3 {[%clk 0:00:04.9]} 44... gxf3 {[%clk 0:00:11.5]} 45. Ke3 {[%clk
0:00:04.9]} 45... f2 {[%clk 0:00:09.8]} 46. Kxf2 {[%clk 0:00:04.8]} 46... Ke4
{[%clk 0:00:10.7]} 47. Ke2 {[%clk 0:00:04.8]} 47... Kf5 {[%clk 0:00:09.4]} 48.
Kf3 {[%clk 0:00:04.1]} 48... Kg5 {[%clk 0:00:09.6]} 49. Kf2 {[%clk 0:00:04]}
49... Kg4 {[%clk 0:00:10]} 50. Kg2 {[%clk 0:00:04.3]} 50... h4 {[%clk
0:00:07.8]} 51. gxh4 {[%clk 0:00:02.7]} 51... Kxh4 {[%clk 0:00:08.7]} 52. Kf3
{[%clk 0:00:03.3]} 52... Kg5 {[%clk 0:00:08.5]} 53. Ke4 {[%clk 0:00:04]} 53...
Kg4 {[%clk 0:00:08.1]} 54. Ke3 {[%clk 0:00:03.6]} 54... f5 {[%clk 0:00:07.7]}
55. Kf2 {[%clk 0:00:04]} 55... Kf4 {[%clk 0:00:07.9]} 56. Ke2 {[%clk 0:00:04.7]}
56... Kg3 {[%clk 0:00:08.1]} 57. Ke3 {[%clk 0:00:03.7]} 57... f4+ {[%clk
0:00:08.3]} 58. Ke4 {[%clk 0:00:04]} 58... f3 {[%clk 0:00:08.6]} 0-1